Workbook

Sheet App.2-FA Proposed REG Invest.
A1: Appendix 2-FA
A2: Renewable Generation Connection Investment Summary (over the rate setting period)
A4: Enter the details of the Renewable Generation Connection projects as described in Section 2.5.2.5 of the Filing Requirements.
A5: All costs entered on this page will be transferred to the appropriate cells in the appendices that follow.
A6: For Part A, Renewable Enabling Improvements (REI), these amounts will be transferred to Appendix 2 - FB
A7: For Part B, Expansions, these amounts will be transferred to Appendix 2 - FC
A9: If there are more than five projects proposed to be in-service in a certain year, please amend the tables below and ensure that the formulae for the Total Amounts in any given rate year are updated.
A10: Based on the current methodology and allocation, amounts allocated represent 6% for REI Connection Investments and 17% for Expansion Investments. (pg 15, EB-2009-0349)
A13: Part A
A14: REI Investments (Direct Benefit at 6%) | C14: 2015 | D14: 2016 | E14: 2017 | F14: 2018 | G14: 2019 | H14: 2020
A15: Project 1
A16: Name: OPA FIT/MicroFIT Program Management
A17: Capital Costs
A18: OM&A (Start-Up) | C18: 0 | D18: 0 | E18: 0 | F18: 0 | G18: 0 | H18: 0
A19: OM&A (Ongoing) | C19: 117500 | D19: 122500 | E19: 110000 | F19: 110000 | G19: 110000 | H19: 0
A21: Project 2
A22: Name: Maintenance of Connected REG Infrastructure
A23: Capital Costs | C23: 0 | D23: 0 | E23: 0 | F23: 0 | G23: 0 | H23: 0
A24: OM&A (Start-Up) | C24: 0 | D24: 0 | E24: 0 | F24: 0 | G24: 0 | H24: 0
A25: OM&A (Ongoing) | C25: 70000 | D25: 76000 | E25: 82000 | F25: 88000 | G25: 94000 | H25: 0
A27: Project 3
A28: Name: Remote Monitoring and Control of REG
A29: Capital Costs | C29: 180000 | D29: 180000 | E29: 180000 | F29: 180000 | G29: 180000 | H29: 0
A30: OM&A (Start-Up) | C30: =0.05*C29 -> 9000 | D30: =0.05*D29 -> 9000 | E30: 9000 | F30: 9000 | G30: 9000 | H30: 0
A31: OM&A (Ongoing)
A33: Project 4
A34: Name: REI Connection Project
A35: Capital Costs | C35: 0 | D35: 0 | E35: 0 | F35: 0 | G35: 0 | H35: 0
A36: OM&A (Start-Up) | C36: 0 | D36: 0 | E36: 0 | F36: 0 | G36: 0 | H36: 0
A37: OM&A (Ongoing) | C37: 0 | D37: 0 | E37: 0 | F37: 0 | G37: 0 | H37: 0
A39: Project 5
A40: Name: REI Connection Project
A41: Capital Costs | C41: 0 | D41: 0 | E41: 0 | F41: 0 | G41: 0 | H41: 0
A42: OM&A (Start-Up) | C42: 0 | D42: 0 | E42: 0 | F42: 0 | G42: 0 | H42: 0
A43: OM&A (Ongoing) | C43: 0 | D43: 0 | E43: 0 | F43: 0 | G43: 0 | H43: 0
A45: Total Capital Costs | C45: =SUM(C41,C35,C29,C23,C17) -> 180000 | D45: =SUM(D41,D35,D29,D23,D17) -> 180000 | E45: 180000 | F45: 180000 | G45: 180000 | H45: =SUM(H41,H35,H29,H23,H17) -> 0
A46: Total OM&A (Start-Up) | C46: =SUM(C42,C36,C30,C24,C18) -> 9000 | D46: 9000 | E46: 9000 | F46: 9000 | G46: 9000 | H46: =SUM(H42,H36,H30,H24,H18) -> 0
A47: Total OM&A (Ongoing) | C47: =SUM(C43,C37,C31,C25,C19) -> 187500 | D47: 198500 | E47: 192000 | F47: 198000 | G47: =SUM(G43,G37,G31,G25,G19) -> 204000 | H47: =SUM(H43,H37,H31,H25,H19) -> 0
A49: Appendix 2-FA
A50: Renewable Generation Connection Investment Summary (over the rate setting period)
A53: Part B
A54: Expansion Investments (Direct Benefit at 17%) | C54: 2015 | D54: 2016 | E54: 2017 | F54: 2018 | G54: 2019 | H54: 2020
A55: Project 1
A56: Name: Transformer Replacement
A57: Capital Costs | C57: 60000 | D57: 60000 | E57: 60000 | F57: 60000 | G57: 60000 | H57: 0
A58: OM&A (Start-Up) | C58: =0.1*C57 -> 6000 | D58: =0.1*D57 -> 6000 | E58: 6000 | F58: 6000 | G58: 6000 | H58: 0
A59: OM&A (Ongoing) | C59: 0 | D59: 0 | E59: 0 | F59: 0 | G59: 0 | H59: 0
A61: Project 2
A62: Name: Rebuilding Existing Line
A63: Capital Costs | C63: 38000 | D63: 10000 | E63: 12000 | F63: 14000 | G63: 16000 | H63: 0
A64: OM&A (Start-Up) | C64: =0.1*C63 -> 3800 | D64: =0.1*D63 -> 1000 | E64: 1200 | F64: 1400 | G64: 1600 | H64: 0
A65: OM&A (Ongoing) | C65: 0 | D65: 0 | E65: 0 | F65: 0 | G65: 0 | H65: 0
A67: Project 3
A68: Name: Expansion Connection Project
A69: Capital Costs | C69: 0 | D69: 0 | E69: 0 | F69: 0 | G69: 0 | H69: 0
A70: OM&A (Start-Up) | C70: 0 | D70: 0 | E70: 0 | F70: 0 | G70: 0 | H70: 0
A71: OM&A (Ongoing) | C71: 0 | D71: 0 | E71: 0 | F71: 0 | G71: 0 | H71: 0
A73: Project 4
A74: Name: Expansion Connection Project
A75: Capital Costs | C75: 0 | D75: 0 | E75: 0 | F75: 0 | G75: 0 | H75: 0
A76: OM&A (Start-Up) | C76: 0 | D76: 0 | E76: 0 | F76: 0 | G76: 0 | H76: 0
A77: OM&A (Ongoing) | C77: 0 | D77: 0 | E77: 0 | F77: 0 | G77: 0 | H77: 0
A79: Project 5
A80: Name: Expansion Connection Project
A81: Capital Costs | C81: 0 | D81: 0 | E81: 0 | F81: 0 | G81: 0 | H81: 0
A82: OM&A (Start-Up) | C82: 0 | D82: 0 | E82: 0 | F82: 0 | G82: 0 | H82: 0
A83: OM&A (Ongoing) | C83: 0 | D83: 0 | E83: 0 | F83: 0 | G83: 0 | H83: 0
A85: Total Capital Costs | C85: =SUM(C81,C75,C69,C63,C57) -> 98000 | D85: =SUM(D81,D75,D69,D63,D57) -> 70000 | E85: 72000 | F85: 74000 | G85: 76000 | H85: =SUM(H81,H75,H69,H63,H57) -> 0
A86: Total OM&A (Start-Up) | C86: =SUM(C82,C76,C70,C64,C58) -> 9800 | D86: 7000 | E86: 7200 | F86: 7400 | G86: 7600 | H86: =SUM(H82,H76,H70,H64,H58) -> 0
A87: Total OM&A (Ongoing) | C87: =SUM(C83,C77,C71,C65,C59) -> 0 | D87: 0 | E87: 0 | F87: 0 | G87: 0 | H87: =SUM(H83,H77,H71,H65,H59) -> 0

Sheet App.2-FB Calc of REG Improvemnt
A1: Appendix 2-FB
A2: Calculation of Renewable Generation Connection Direct Benefits/Provincial Amount: Renewable Enabling Improvement Investments
A4: This table will calculate the distributor/provincial shares of the investments entered in Part A of Appendix 2-FA.
A5: Enter values in green shaded cells: WCA percentage, debt percentages, interest rates, kWh, tax rates, amortization period, CCA Class and percentage.
A6: Rate Riders are not calculated for Test Year as these assets and costs are already in the distributor's rate base/revenue requirement.
D8: 2015Test Year | G8: 2016 | J8: 2017 | K8: 2016 | M8: 2018 | P8: 2019 | S8: 2020
E9: Direct Benefit | F9: Provincial | H9: Direct Benefit | I9: Provincial | K9: Direct Benefit | L9: Provincial | N9: Direct Benefit | O9: Provincial | Q9: Direct Benefit | R9: Provincial | T9: Direct Benefit | U9: Provincial
D10: Total | E10: 0.06 | F10: 0.94 | G10: Total | H10: 0.06 | I10: 0.94 | J10: Total | K10: 0.06 | L10: 0.94 | M10: Total | N10: 0.06 | O10: 0.94 | P10: Total | Q10: 0.06 | R10: 0.94 | S10: Total | T10: 0.06 | U10: 0.94
A11: Net Fixed Assets (average) | D11: =D75 -> 87000 | E11: =D11*E10 -> 5220 | F11: =D11*F10 -> 81780 | G11: =E75 -> 255000 | H11: =G11*H10 -> 15300 | I11: =G11*I10 -> 239700 | J11: =F75 -> 411000 | K11: =J11*K10 -> 24660 | L11: =J11*L10 -> 386340 | M11: =G75 -> 555000 | N11: =M11*N10 -> 33300 | O11: =M11*O10 -> 521700 | P11: =H75 -> 687000 | Q11: =P11*Q10 -> 41220 | R11: =P11*R10 -> 645780 | S11: =I75 -> 720000 | T11: =S11*T10 -> 43200 | U11: =S11*U10 -> 676800
A12: Incremental OM&A (on-going, N/A for Provincial Recovery) | D12: ='App.2-FA Proposed REG Invest.'!C47 -> 187500 | E12: =D12 -> 187500 | G12: ='App.2-FA Proposed REG Invest.'!D47 -> 198500 | H12: =G12 -> 198500 | J12: ='App.2-FA Proposed REG Invest.'!E47 -> 192000 | K12: =J12 -> 192000 | M12: ='App.2-FA Proposed REG Invest.'!F47 -> 198000 | N12: =M12 -> 198000 | P12: ='App.2-FA Proposed REG Invest.'!G47 -> 204000 | Q12: =P12 -> 204000 | S12: ='App.2-FA Proposed REG Invest.'!H47 -> 0 | T12: =S12 -> 0
A13: Incremental OM&A (start-up, applicable for Provincial Recovery) | D13: ='App.2-FA Proposed REG Invest.'!C46 -> 9000 | E13: =D13*E10 -> 540 | F13: =D13*F10 -> 8460 | G13: ='App.2-FA Proposed REG Invest.'!D46 -> 9000 | H13: =G13*H10 -> 540 | I13: =G13*I10 -> 8460 | J13: ='App.2-FA Proposed REG Invest.'!E46 -> 9000 | K13: =J13*K10 -> 540 | L13: =J13*L10 -> 8460 | M13: ='App.2-FA Proposed REG Invest.'!F46 -> 9000 | N13: =M13*N10 -> 540 | O13: =M13*O10 -> 8460 | P13: ='App.2-FA Proposed REG Invest.'!G46 -> 9000 | Q13: =P13*Q10 -> 540 | R13: =P13*R10 -> 8460 | S13: ='App.2-FA Proposed REG Invest.'!H46 -> 0 | T13: =S13*T10 -> 0 | U13: =S13*U10 -> 0
A14: WCA | B14: 0.13 | E14: =(E12+E13)*$B$14 -> 24445.2 | F14: =F13*$B$14 -> 1099.8 | H14: =(H12+H13)*$B$14 -> 25875.2 | I14: =I13*$B$14 -> 1099.8 | K14: =(K12+K13)*$B$14 -> 25030.2 | L14: =L13*$B$14 -> 1099.8 | N14: =(N12+N13)*$B$14 -> 25810.2 | O14: =O13*$B$14 -> 1099.8 | Q14: =(Q12+Q13)*$B$14 -> 26590.2 | R14: =R13*$B$14 -> 1099.8 | T14: =(T12+T13)*$B$14 -> 0 | U14: =U13*$B$14 -> 0
A15: Rate Base | E15: =SUM(E11+E14) -> 29665.2 | F15: =SUM(F11+F14) -> 82879.8 | H15: =SUM(H11+H14) -> 41175.2 | I15: =SUM(I11+I14) -> 240799.8 | K15: =SUM(K11+K14) -> 49690.2 | L15: =SUM(L11+L14) -> 387439.8 | N15: =SUM(N11+N14) -> 59110.2 | O15: =SUM(O11+O14) -> 522799.8 | Q15: =SUM(Q11+Q14) -> 67810.2 | R15: =SUM(R11+R14) -> 646879.8 | T15: =SUM(T11+T14) -> 43200 | U15: =SUM(U11+U14) -> 676800
D16: =+D11/25/2 -> 1740
A18: Deemed ST Debt | B18: 0.04 | E18: =E15*$B$18 -> 1186.608 | F18: =F15*$B$18 -> 3315.192 | H18: =H15*$B$18 -> 1647.008 | I18: =I15*$B$18 -> 9631.992 | K18: =K15*$B$18 -> 1987.608 | L18: =L15*$B$18 -> 15497.592 | N18: =N15*$B$18 -> 2364.408 | O18: =O15*$B$18 -> 20911.992 | Q18: =Q15*$B$18 -> 2712.408 | R18: =R15*$B$18 -> 25875.192 | T18: =T15*$B$18 -> 1728 | U18: =U15*$B$18 -> 27072
A19: Deemed LT Debt | B19: 0.56 | E19: =E15*$B$19 -> 16612.512 | F19: =F15*$B$19 -> 46412.688 | H19: =H15*$B$19 -> 23058.112 | I19: =I15*$B$19 -> 134847.888 | K19: =K15*$B$19 -> 27826.512 | L19: =L15*$B$19 -> 216966.288 | N19: =N15*$B$19 -> 33101.712 | O19: =O15*$B$19 -> 292767.888 | Q19: =Q15*$B$19 -> 37973.712 | R19: =R15*$B$19 -> 362252.688 | T19: =T15*$B$19 -> 24192 | U19: =U15*$B$19 -> 379008
A20: Deemed Equity | B20: 0.4 | E20: =E15*$B$20 -> 11866.08 | F20: =F15*$B$20 -> 33151.92 | H20: =H15*$B$20 -> 16470.08 | I20: =I15*$B$20 -> 96319.92 | K20: =K15*$B$20 -> 19876.08 | L20: =L15*$B$20 -> 154975.92 | N20: =N15*$B$20 -> 23644.08 | O20: =O15*$B$20 -> 209119.92 | Q20: =Q15*$B$20 -> 27124.08 | R20: =R15*$B$20 -> 258751.92 | T20: =T15*$B$20 -> 17280 | U20: =U15*$B$20 -> 270720
A22: ST Interest | B22: 0.0216 | E22: =E18*$B22 -> 25.6307328 | F22: =F18*$B22 -> 71.6081472 | H22: =H18*$B22 -> 35.5753728 | I22: =I18*$B22 -> 208.0510272 | K22: =K18*$B22 -> 42.9323328 | L22: =L18*$B22 -> 334.7479872 | N22: =N18*$B22 -> 51.0712128 | O22: =O18*$B22 -> 451.6990272 | Q22: =Q18*$B22 -> 58.5880128 | R22: =R18*$B22 -> 558.9041472 | T22: =T18*$B22 -> 37.3248 | U22: =U18*$B22 -> 584.7552
A23: LT Interest | B23: 0.06072871046 | E23: =E19*$B23 -> 1008.856431 | F23: 2818.582691 | H23: =H19*$B23 -> 1400.289407 | I23: 8189.138347 | K23: =K19*$B23 -> 1689.86819 | L23: 13176.08288 | N23: =N19*$B23 -> 2010.224284 | O23: 17779.4163 | Q23: =Q19*$B23 -> 2306.094561 | R23: 21999.1386 | T23: =T19*$B23 -> 1469.148964 | U23: 23016.66709
A24: ROE | B24: 0.093 | E24: 1103.54544 | F24: 3083.12856 | H24: 1531.71744 | I24: 8957.75256 | K24: 1848.47544 | L24: 14412.76056 | N24: 2198.89944 | O24: 19448.15256 | Q24: 2522.53944 | R24: 24063.92856 | T24: =T20*$B24 -> 1607.04 | U24: 25176.96
A25: Cost of Capital Total | E25: =SUM(E22:E24) -> 2138.032604 | F25: =SUM(F22:F24) -> 5973.319399 | H25: =SUM(H22:H24) -> 2967.58222 | I25: =SUM(I22:I24) -> 17354.94193 | K25: =SUM(K22:K24) -> 3581.275963 | L25: =SUM(L22:L24) -> 27923.59143 | N25: =SUM(N22:N24) -> 4260.194937 | O25: =SUM(O22:O24) -> 37679.26789 | Q25: =SUM(Q22:Q24) -> 4887.222014 | R25: =SUM(R22:R24) -> 46621.97131 | T25: =SUM(T22:T24) -> 3113.513764 | U25: =SUM(U22:U24) -> 48778.38229
A27: OM&A | E27: =E12+E13 -> 188040 | F27: =F13 -> 8460 | H27: =H12+H13 -> 199040 | I27: =I13 -> 8460 | K27: =K12+K13 -> 192540 | L27: =L13 -> 8460 | N27: =N12+N13 -> 198540 | O27: =O13 -> 8460 | Q27: =Q12+Q13 -> 204540 | R27: =R13 -> 8460 | T27: =T12+T13 -> 0 | U27: =U13 -> 0
A28: Amortization | D28: =D70 -> 6000 | E28: =D28*E$10 -> 360 | F28: =D28*F$10 -> 5640 | G28: =E69+E70 -> 18000 | H28: =G28*H$10 -> 1080 | I28: =G28*I$10 -> 16920 | J28: =F69+F70 -> 30000 | K28: =J28*K$10 -> 1800 | L28: =J28*L$10 -> 28200 | M28: =G69+G70 -> 42000 | N28: =M28*N$10 -> 2520 | O28: =M28*O$10 -> 39480 | P28: =H69+H70 -> 54000 | Q28: =P28*Q$10 -> 3240 | R28: =P28*R$10 -> 50760 | S28: =K69+K70 -> 0 | T28: =S28*T$10 -> 0 | U28: =S28*U$10 -> 0
A29: Grossed-up PILs | E29: =E55 -> 371.9177437 | F29: =F55 -> 704.9102971 | H29: =H55 -> 486.8347233 | I29: =I55 -> 2204.797318 | K29: =K55 -> 585.5060131 | L29: =L55 -> 3928.203293 | N29: =N55 -> 718.3254495 | O29: =O55 -> 5845.143497 | Q29: =Q55 -> 861.7373293 | R29: =R55 -> 7928.031983 | T29: =T55 -> 579.4089796 | U29: =U55 -> 9077.407347
A31: Revenue Requirement | E31: =SUM(E25:E29) -> 190909.9503 | F31: =SUM(F25:F29) -> 20778.2297 | H31: =SUM(H25:H29) -> 203574.4169 | I31: =SUM(I25:I29) -> 44939.73925 | K31: =SUM(K25:K29) -> 198506.782 | L31: =SUM(L25:L29) -> 68511.79472 | N31: =SUM(N25:N29) -> 206038.5204 | O31: =SUM(O25:O29) -> 91464.41139 | Q31: =SUM(Q25:Q29) -> 213528.9593 | R31: =SUM(R25:R29) -> 113770.0033 | T31: =SUM(T25:T29) -> 3692.922743 | U31: =SUM(U25:U29) -> 57855.78964
A34: Provincial Rate Protection | F34: =F31 -> 20778.2297 | I34: =I31 -> 44939.73925 | L34: =L31 -> 68511.79472 | O34: =O31 -> 91464.41139 | R34: =R31 -> 113770.0033 | U34: =U31 -> 57855.78964
A36: Monthly Amount Paid by IESO | F36: =F34/12 -> 1731.519141 | I36: =I34/12 -> 3744.978271 | L36: =L34/12 -> 5709.316227 | O36: =O34/12 -> 7622.034282 | R36: =R34/12 -> 9480.833608 | U36: =U34/12 -> 4821.315803
A38: Note 1: The difference between the actual costs of approved eligible investments and revenue received from the IESO should be recorded in a variance account. The Board regulatory accounting guidance regarding a variance account either in an individual proceeding or on a generic basis.
A39: Note 2: For the 2014 Test Year, Costs and Revenues of the Direct Benefit are to be included in the test year applicant Rate Base and Revenues. | U39: =+U34+'App.2-FC Calc of REG Expansion'!U35 -> 83482.97193
U40: =+U36+'App.2-FC Calc of REG Expansion'!U37 -> 6956.914328
A41: PILs Calculation
E42: 2015 | H42: 2016 | K42: 2017 | N42: 2018 | Q42: 2019 | T42: 2020
A43: Income Tax | E43: Direct Benefit | F43: Provincial | H43: Direct Benefit | I43: Provincial | K43: Direct Benefit | L43: Provincial | N43: Direct Benefit | O43: Provincial | Q43: Direct Benefit | R43: Provincial | T43: Direct Benefit | U43: Provincial
M44: Total | P44: Total | S44: Total
A45: Net Income - ROE on Rate Base | E45: =E24 -> 1103.54544 | F45: =F24 -> 3083.12856 | H45: =H24 -> 1531.71744 | I45: =I24 -> 8957.75256 | K45: =K24 -> 1848.47544 | L45: =L24 -> 14412.76056 | N45: =N24 -> 2198.89944 | O45: =O24 -> 19448.15256 | Q45: =Q24 -> 2522.53944 | R45: =R24 -> 24063.92856 | T45: =T24 -> 1607.04 | U45: =U24 -> 25176.96
A46: Amortization (6% DB and 94% P) | E46: =E28 -> 360 | F46: =F28 -> 5640 | H46: =H28 -> 1080 | I46: =I28 -> 16920 | K46: =K28 -> 1800 | L46: =L28 -> 28200 | N46: =N28 -> 2520 | O46: =O28 -> 39480 | Q46: =Q28 -> 3240 | R46: =R28 -> 50760 | T46: =T28 -> 0 | U46: =U28 -> 0
A47: CCA (6% DB and 94% P) | E47: =-D87*E$10 -> -432 | F47: =-D87*F$10 -> -6768 | H47: =-E87*H$10 -> -1261.44 | I47: =-E87*I$10 -> -19762.56 | K47: =-F87*K$10 -> -2024.5248 | L47: =-F87*L$10 -> -31717.5552 | N47: =-G87*N$10 -> -2726.562816 | O47: =-G87*O$10 -> -42716.15078 | Q47: =-H87*Q$10 -> -3372.437791 | R47: =-H87*R$10 -> -52834.85872 | T47: =-K87*T$10 -> 0 | U47: =-K87*U$10 -> 0
A48: Taxable income | E48: =SUM(E45:E47) -> 1031.54544 | F48: =SUM(F45:F47) -> 1955.12856 | H48: =SUM(H45:H47) -> 1350.27744 | I48: =SUM(I45:I47) -> 6115.19256 | K48: =SUM(K45:K47) -> 1623.95064 | L48: =SUM(L45:L47) -> 10895.20536 | N48: =SUM(N45:N47) -> 1992.336624 | O48: =SUM(O45:O47) -> 16212.00178 | Q48: =SUM(Q45:Q47) -> 2390.101649 | R48: =SUM(R45:R47) -> 21989.06984 | T48: =SUM(T45:T47) -> 1607.04 | U48: =SUM(U45:U47) -> 25176.96
A50: Tax Rate (to be entered) | E50: 0.265 | F50: 0.265 | H50: 0.265 | I50: 0.265 | K50: 0.265 | L50: 0.265 | N50: 0.265 | O50: 0.265 | Q50: 0.265 | R50: 0.265 | T50: 0.265 | U50: 0.265
A52: Income Taxes Payable | E52: =E48*E50 -> 273.3595416 | F52: =F48*F50 -> 518.1090684 | H52: =H48*H50 -> 357.8235216 | I52: =I48*I50 -> 1620.526028 | K52: =K48*K50 -> 430.3469196 | L52: =L48*L50 -> 2887.22942 | N52: =N48*N50 -> 527.9692054 | O52: =O48*O50 -> 4296.180471 | Q52: =Q48*Q50 -> 633.3769371 | R52: =R48*R50 -> 5827.103507 | T52: =T48*T50 -> 425.8656 | U52: =U48*U50 -> 6671.8944
A53: Gross Up
A54: Income Taxes Payable | E54: =E52/(1-E50) -> 371.9177437 | F54: =F52/(1-F50) -> 704.9102971 | H54: =H52/(1-H50) -> 486.8347233 | I54: =I52/(1-I50) -> 2204.797318 | K54: =K52/(1-K50) -> 585.5060131 | L54: =L52/(1-L50) -> 3928.203293 | N54: =N52/(1-N50) -> 718.3254495 | O54: =O52/(1-O50) -> 5845.143497 | Q54: =Q52/(1-Q50) -> 861.7373293 | R54: =R52/(1-R50) -> 7928.031983 | T54: =T52/(1-T50) -> 579.4089796 | U54: =U52/(1-U50) -> 9077.407347
A55: Grossed Up PILs | E55: =SUM(E54:E54) -> 371.9177437 | F55: =SUM(F54:F54) -> 704.9102971 | H55: =SUM(H54:H54) -> 486.8347233 | I55: =SUM(I54:I54) -> 2204.797318 | K55: =SUM(K54:K54) -> 585.5060131 | L55: =SUM(L54:L54) -> 3928.203293 | N55: =SUM(N54:N54) -> 718.3254495 | O55: =SUM(O54:O54) -> 5845.143497 | Q55: =SUM(Q54:Q54) -> 861.7373293 | R55: =SUM(R54:R54) -> 7928.031983 | T55: =SUM(T54:T54) -> 579.4089796 | U55: =SUM(U54:U54) -> 9077.407347
A58: Appendix 2-FB
A59: Calculation of Renewable Generation Connection Direct Benefits/Provincial Amount: Renewable Enabling Improvement Investments
D61: 2015 | E61: 2016 | F61: 2017 | G61: 2018 | H61: 2019 | I61: 2020
A62: Net Fixed Assets | D62: =(180000/25)/2 -> 3600
B63: Enter applicable amortization in years: | C63: 15
A64: Opening Gross Fixed Assets | E64: =D66 -> 180000 | F64: =E66 -> 360000 | G64: =F66 -> 540000 | H64: =G66 -> 720000 | I64: =H66 -> 900000
A65: Gross Capital Additions | D65: ='App.2-FA Proposed REG Invest.'!C45 -> 180000 | E65: ='App.2-FA Proposed REG Invest.'!D45 -> 180000 | F65: ='App.2-FA Proposed REG Invest.'!E45 -> 180000 | G65: ='App.2-FA Proposed REG Invest.'!F45 -> 180000 | H65: ='App.2-FA Proposed REG Invest.'!G45 -> 180000 | I65: ='App.2-FA Proposed REG Invest.'!H45 -> 0
A66: Closing Gross Fixed Assets | D66: =SUM(D64:D65) -> 180000 | E66: =SUM(E64:E65) -> 360000 | F66: 540000 | G66: 720000 | H66: 900000 | I66: =SUM(I64:I65) -> 900000
A68: Opening Accumulated Amortization | E68: =D71 -> 6000 | F68: =E71 -> 24000 | G68: =F71 -> 54000 | H68: =G71 -> 96000 | I68: =H71 -> 150000
A69: Current Year Amortization (before additions) | E69: =IF(ISERROR(E64/$C$63), 0, E64/$C$63) -> 12000 | F69: =IF(ISERROR(F64/$C$63), 0, F64/$C$63) -> 24000 | G69: =IF(ISERROR(G64/$C$63), 0, G64/$C$63) -> 36000 | H69: =IF(ISERROR(H64/$C$63), 0, H64/$C$63) -> 48000 | I69: =IF(ISERROR(I64/$C$63), 0, I64/$C$63) -> 60000
A70: Additions (half year) | D70: =D65/C63/2 -> 6000 | E70: =E65/C63/2 -> 6000 | F70: =F65/C63/2 -> 6000 | G70: =G65/C63/2 -> 6000 | H70: =H65/C63/2 -> 6000 | I70: =I65/C63/2 -> 0
A71: Closing Accumulated Amortization | D71: =SUM(D68+D70) -> 6000 | E71: =SUM(E68:E70) -> 24000 | F71: =SUM(F68:F70) -> 54000 | G71: =SUM(G68:G70) -> 96000 | H71: =SUM(H68:H70) -> 150000 | I71: =SUM(I68:I70) -> 210000
A73: Opening Net Fixed Assets | D73: =D64-D68 -> 0 | E73: =D74 -> 174000 | F73: =E74 -> 336000 | G73: =F74 -> 486000 | H73: =G74 -> 624000 | I73: =H74 -> 750000
A74: Closing Net Fixed Assets | D74: =D66-D71 -> 174000 | E74: 336000 | F74: 486000 | G74: 624000 | H74: 750000 | I74: 690000
A75: Average Net Fixed Assets | D75: =SUM(D73:D74)/2 -> 87000 | E75: 255000 | F75: 411000 | G75: 555000 | H75: 687000 | I75: 720000
A77: UCC for PILs Calculation
D78: 2015 | E78: 2016 | F78: 2017 | G78: 2018 | H78: 2019 | I78: 2020
A80: Opening UCC | E80: =D88 -> 172800 | F80: =E88 -> 331776 | G80: =F88 -> 478033.92 | H80: =G88 -> 612591.2064 | I80: =H88 -> 736383.9099
A81: Capital Additions (from Appendix 2-FA) | D81: =D65 -> 180000 | E81: =E65 -> 180000 | F81: =F65 -> 180000 | G81: 180000 | H81: 180000 | I81: =I65 -> 0
A82: UCC Before Half Year Rule | D82: =SUM(D80:D81) -> 180000 | E82: 352800 | F82: 511776 | G82: 658033.92 | H82: 792591.2064 | I82: 736383.9099
A83: Half Year Rule (1/2 Additions - Disposals) | D83: =D81/2 -> 90000 | E83: 90000 | F83: 90000 | G83: 90000 | H83: 90000 | I83: 0
A84: Reduced UCC | D84: =D82-D83 -> 90000 | E84: 262800 | F84: 421776 | G84: 568033.92 | H84: 702591.2064 | I84: 736383.9099
A85: CCA Rate Class (to be entered) | C85: 47 | D85: =C85 -> 47 | E85: =C85 -> 47 | F85: =C85 -> 47 | G85: =C85 -> 47 | H85: =C85 -> 47 | I85: =D85 -> 47
A86: CCA Rate (to be entered) | C86: 0.08 | D86: =C86 -> 0.08 | E86: =C86 -> 0.08 | F86: =C86 -> 0.08 | G86: =C86 -> 0.08 | H86: =C86 -> 0.08 | I86: =D86 -> 0.08
A87: CCA | D87: =D84*D86 -> 7200 | E87: =E84*E86 -> 21024 | F87: 33742.08 | G87: 45442.7136 | H87: =H84*H86 -> 56207.29651 | I87: =I84*I86 -> 58910.71279
A88: Closing UCC | D88: =D82-D87 -> 172800 | E88: 331776 | F88: 478033.92 | G88: 612591.2064 | H88: 736383.9099 | I88: 677473.1971

Sheet App.2-FC Calc of REG Expansion
A1: Appendix 2-FC
A2: Calculation of Renewable Generation Connection Direct Benefits/Provincial Amount: Renewable Expansion Investments
A4: This table will calculate the distributor/provincial shares of the investments entered in Part B of Appendix 2-FA.
A5: Enter values in green shaded cells: WCA percentage, debt percentages, interest rates, kWh, tax rates, amortization period, CCA Class and percentage.
A6: Rate Riders are not calculated for Test Year as these assets and costs are already in the distributors rate base.
D9: 2015 Test Year | G9: 2016 | J9: 2017 | K9: 2016 | M9: 2018 | P9: 2019 | S9: 2020
E10: Direct Benefit | F10: Provincial | H10: Direct Benefit | I10: Provincial | K10: Direct Benefit | L10: Provincial | N10: Direct Benefit | O10: Provincial | Q10: Direct Benefit | R10: Provincial | T10: Direct Benefit | U10: Provincial
D11: Total | E11: 0.17 | F11: 0.83 | G11: Total | H11: 0.17 | I11: 0.83 | J11: Total | K11: 0.17 | L11: 0.83 | M11: Total | N11: 0.17 | O11: 0.83 | P11: Total | Q11: 0.17 | R11: 0.83 | S11: Total | T11: 0.17 | U11: 0.83
A12: Net Fixed Assets (average) | D12: =D73 -> 48416.66667 | E12: =D12*E11 -> 8230.833333 | F12: =D12*F11 -> 40185.83333 | G12: =E73 -> 130250 | H12: =G12*H11 -> 22142.5 | I12: =G12*I11 -> 108107.5 | J12: =F73 -> 197238.0952 | K12: =J12*K11 -> 33530.47619 | L12: =J12*L11 -> 163707.619 | M12: =G73 -> 264511.9048 | N12: =M12*N11 -> 44967.02381 | O12: =M12*O11 -> 219544.881 | P12: =H73 -> 332023.8095 | Q12: =P12*Q11 -> 56444.04762 | R12: =P12*R11 -> 275579.7619 | S12: =I73 -> 361190.4762 | T12: =S12*T11 -> 61402.38095 | U12: =S12*U11 -> 299788.0952
A13: Incremental OM&A (on-going, N/A for Provincial Recovery) | D13: ='App.2-FA Proposed REG Invest.'!C87 -> 0 | E13: =D13 -> 0 | G13: ='App.2-FA Proposed REG Invest.'!D87 -> 0 | H13: =G13 -> 0 | J13: ='App.2-FA Proposed REG Invest.'!E87 -> 0 | K13: =J13 -> 0 | M13: ='App.2-FA Proposed REG Invest.'!F87 -> 0 | N13: =M13 -> 0 | P13: ='App.2-FA Proposed REG Invest.'!G87 -> 0 | Q13: =P13 -> 0 | S13: ='App.2-FA Proposed REG Invest.'!H87 -> 0 | T13: =S13 -> 0
A14: Incremental OM&A (start-up, applicable for Provincial Recovery) | D14: ='App.2-FA Proposed REG Invest.'!C86 -> 9800 | E14: =D14*E11 -> 1666 | F14: =D14*F11 -> 8134 | G14: ='App.2-FA Proposed REG Invest.'!D86 -> 7000 | H14: =G14*H11 -> 1190 | I14: =G14*I11 -> 5810 | J14: ='App.2-FA Proposed REG Invest.'!E86 -> 7200 | K14: =J14*K11 -> 1224 | L14: =J14*L11 -> 5976 | M14: ='App.2-FA Proposed REG Invest.'!F86 -> 7400 | N14: =M14*N11 -> 1258 | O14: =M14*O11 -> 6142 | P14: ='App.2-FA Proposed REG Invest.'!G86 -> 7600 | Q14: =P14*Q11 -> 1292 | R14: =P14*R11 -> 6308 | S14: ='App.2-FA Proposed REG Invest.'!H86 -> 0 | T14: =S14*T11 -> 0 | U14: =S14*U11 -> 0
A15: WCA | B15: 0.13 | E15: =(E13+E14)*$B$15 -> 216.58 | F15: =F14*$B$15 -> 1057.42 | H15: =(H13+H14)*$B$15 -> 154.7 | I15: =I14*$B$15 -> 755.3 | K15: =(K13+K14)*$B$15 -> 159.12 | L15: =L14*$B$15 -> 776.88 | N15: =(N13+N14)*$B$15 -> 163.54 | O15: =O14*$B$15 -> 798.46 | Q15: =(Q13+Q14)*$B$15 -> 167.96 | R15: =R14*$B$15 -> 820.04 | T15: =(T13+T14)*$B$15 -> 0 | U15: =U14*$B$15 -> 0
A16: Rate Base | E16: =SUM(E12+E15) -> 8447.413333 | F16: =SUM(F12+F15) -> 41243.25333 | H16: =SUM(H12+H15) -> 22297.2 | I16: =SUM(I12+I15) -> 108862.8 | K16: =SUM(K12+K15) -> 33689.59619 | L16: =SUM(L12+L15) -> 164484.499 | N16: =SUM(N12+N15) -> 45130.56381 | O16: =SUM(O12+O15) -> 220343.341 | Q16: =SUM(Q12+Q15) -> 56612.00762 | R16: =SUM(R12+R15) -> 276399.8019 | T16: =SUM(T12+T15) -> 61402.38095 | U16: =SUM(U12+U15) -> 299788.0952
A19: Deemed ST Debt | B19: 0.04 | E19: =E16*$B$19 -> 337.8965333 | F19: =F16*$B$19 -> 1649.730133 | H19: =H16*$B$19 -> 891.888 | I19: =I16*$B$19 -> 4354.512 | K19: =K16*$B$19 -> 1347.583848 | L19: =L16*$B$19 -> 6579.379962 | N19: =N16*$B$19 -> 1805.222552 | O19: =O16*$B$19 -> 8813.733638 | Q19: =Q16*$B$19 -> 2264.480305 | R19: =R16*$B$19 -> 11055.99208 | T19: =T16*$B$19 -> 2456.095238 | U19: =U16*$B$19 -> 11991.52381
A20: Deemed LT Debt | B20: 0.56 | E20: =E16*$B$20 -> 4730.551467 | F20: =F16*$B$20 -> 23096.22187 | H20: =H16*$B$20 -> 12486.432 | I20: =I16*$B$20 -> 60963.168 | K20: =K16*$B$20 -> 18866.17387 | L20: =L16*$B$20 -> 92111.31947 | N20: =N16*$B$20 -> 25273.11573 | O20: =O16*$B$20 -> 123392.2709 | Q20: =Q16*$B$20 -> 31702.72427 | R20: =R16*$B$20 -> 154783.8891 | T20: =T16*$B$20 -> 34385.33333 | U20: =U16*$B$20 -> 167881.3333
A21: Deemed Equity | B21: 0.4 | E21: =E16*$B$21 -> 3378.965333 | F21: =F16*$B$21 -> 16497.30133 | H21: =H16*$B$21 -> 8918.88 | I21: =I16*$B$21 -> 43545.12 | K21: =K16*$B$21 -> 13475.83848 | L21: =L16*$B$21 -> 65793.79962 | N21: =N16*$B$21 -> 18052.22552 | O21: =O16*$B$21 -> 88137.33638 | Q21: =Q16*$B$21 -> 22644.80305 | R21: =R16*$B$21 -> 110559.9208 | T21: =T16*$B$21 -> 24560.95238 | U21: =U16*$B$21 -> 119915.2381
A23: ST Interest | B23: 0.0216 | E23: =E19*$B$23 -> 7.29856512 | F23: =F19*$B$23 -> 35.63417088 | H23: =H19*$B$23 -> 19.2647808 | I23: =I19*$B$23 -> 94.0574592 | K23: =K19*$B$23 -> 29.10781111 | L23: =L19*$B$23 -> 142.1146072 | N23: =N19*$B$23 -> 38.99280713 | O23: =O19*$B$23 -> 190.3766466 | Q23: =Q19*$B$23 -> 48.91277458 | R23: =R19*$B$23 -> 238.8094288 | T23: =T19*$B$23 -> 53.05165714 | U23: =U19*$B$23 -> 259.0169143
A24: LT Interest | B24: 0.06072871046 | E24: =E20*$B$24 -> 287.2802903 | F24: =F20*$B$24 -> 1402.603771 | H24: =H20*$B$24 -> 758.2849136 | I24: =I20*$B$24 -> 3702.214578 | K24: =K20*$B$24 -> 1145.71841 | L24: =L20*$B$24 -> 5593.80165 | N24: =N20*$B$24 -> 1534.803728 | O24: =O20*$B$24 -> 7493.453495 | Q24: =Q20*$B$24 -> 1925.265563 | R24: =R20*$B$24 -> 9399.825983 | T24: =T20*$B$24 -> 2088.176952 | U24: =U20*$B$24 -> 10195.21688
A25: ROE | B25: 0.093 | E25: =E21*$B$25 -> 314.243776 | F25: =F21*$B$25 -> 1534.249024 | H25: =H21*$B$25 -> 829.45584 | I25: =I21*$B$25 -> 4049.69616 | K25: =K21*$B$25 -> 1253.252978 | L25: =L21*$B$25 -> 6118.823365 | N25: =N21*$B$25 -> 1678.856974 | O25: =O21*$B$25 -> 8196.772283 | Q25: =Q21*$B$25 -> 2105.966683 | R25: =R21*$B$25 -> 10282.07263 | T25: =T21*$B$25 -> 2284.168571 | U25: =U21*$B$25 -> 11152.11714
A26: Cost of Capital Total | E26: =SUM(E23:E25) -> 608.8226315 | F26: =SUM(F23:F25) -> 2972.486965 | H26: =SUM(H23:H25) -> 1607.005534 | I26: =SUM(I23:I25) -> 7845.968198 | K26: =SUM(K23:K25) -> 2428.0792 | L26: =SUM(L23:L25) -> 11854.73962 | N26: =SUM(N23:N25) -> 3252.653509 | O26: =SUM(O23:O25) -> 15880.60242 | Q26: =SUM(Q23:Q25) -> 4080.145021 | R26: =SUM(R23:R25) -> 19920.70804 | T26: =SUM(T23:T25) -> 4425.397181 | U26: =SUM(U23:U25) -> 21606.35094
A28: OM&A | E28: =E13+E14 -> 1666 | F28: =F14 -> 8134 | H28: =H13+H14 -> 1190 | I28: =I14 -> 5810 | K28: =K13+K14 -> 1224 | L28: =L14 -> 5976 | N28: =N13+N14 -> 1258 | O28: =O14 -> 6142 | Q28: =Q13+Q14 -> 1292 | R28: =R14 -> 6308 | T28: =T13+T14 -> 0 | U28: =U14 -> 0
A29: Amortization | D29: =D69 -> 1166.666667 | E29: =D29*E$11 -> 198.3333333 | F29: =D29*F$11 -> 968.3333333 | G29: =E67+E68 -> 3166.666667 | H29: =G29*H$11 -> 538.3333333 | I29: =G29*I$11 -> 2628.333333 | J29: =F67+F68 -> 4857.142857 | K29: =J29*K$11 -> 825.7142857 | L29: =J29*L$11 -> 4031.428571 | M29: =G67+G68 -> 6595.238095 | N29: =M29*N$11 -> 1121.190476 | O29: =M29*O$11 -> 5474.047619 | P29: =H67+H68 -> 8380.952381 | Q29: =P29*Q$11 -> 1424.761905 | R29: =P29*R$11 -> 6956.190476 | S29: =K67+K68 -> 0 | T29: =S29*T$11 -> 0 | U29: =S29*U$11 -> 0
A30: Grossed-up PILs | E30: =E55 -> -55.45995378 | F30: =F55 -> -270.7750684 | H30: =H55 -> -139.7825702 | I30: =I55 -> -682.4678425 | K30: =K55 -> -180.8784346 | L30: =L55 -> -883.1123572 | N30: =N55 -> -204.4103976 | O30: =O55 -> -998.0037058 | Q30: =Q55 -> -211.606535 | R30: =R55 -> -1033.137789 | T30: =T55 -> 823.5437707 | U30: =U55 -> 4020.831351
A32: Revenue Requirement | E32: =SUM(E26:E30) -> 2417.696011 | F32: =SUM(F26:F30) -> 11804.04523 | H32: =SUM(H26:H30) -> 3195.556298 | I32: =SUM(I26:I30) -> 15601.83369 | K32: =SUM(K26:K30) -> 4296.915051 | L32: =SUM(L26:L30) -> 20979.05584 | N32: =SUM(N26:N30) -> 5427.433587 | O32: =SUM(O26:O30) -> 26498.64634 | Q32: =SUM(Q26:Q30) -> 6585.300391 | R32: =SUM(R26:R30) -> 32151.76073 | T32: =SUM(T26:T30) -> 5248.940951 | U32: =SUM(U26:U30) -> 25627.18229
A35: Provincial Rate Protection | F35: =F32 -> 11804.04523 | I35: =I32 -> 15601.83369 | L35: =L32 -> 20979.05584 | O35: =O32 -> 26498.64634 | R35: =R32 -> 32151.76073 | U35: =U32 -> 25627.18229
A37: Monthly Amount Paid by IESO | F37: =F35/12 -> 983.6704359 | I37: =I35/12 -> 1300.152807 | L37: =L35/12 -> 1748.254653 | O37: =O35/12 -> 2208.220528 | R37: =R35/12 -> 2679.313394 | U37: =U35/12 -> 2135.598524
A39: Note 1: The difference between the actual costs of approved eligible investments and revenue received from the IESO should be recorded in a variance account. The Board may provide regulatory accounting guidance regarding a variance account either in an individual proceeding or on a generic basis.
A40: Note 2: For the 2014 Test Year, Costs and Revenues of the Direct Benefit are to be included in the test year applicant Rate Base and Revenues.
A42: PILs Calculation
E43: 2015 | H43: 2016 | K43: 2017 | N43: 2018 | Q43: 2019 | T43: 2019
A44: Income Tax | E44: Direct Benefit | F44: Provincial | H44: Direct Benefit | I44: Provincial | K44: Direct Benefit | L44: Provincial | N44: Direct Benefit | O44: Provincial | Q44: Direct Benefit | R44: Provincial | T44: Direct Benefit | U44: Provincial
M45: Total | P45: Total | S45: Total
A46: Net Income - ROE on Rate Base | E46: =E25 -> 314.243776 | F46: =F25 -> 1534.249024 | H46: =H25 -> 829.45584 | I46: =I25 -> 4049.69616 | K46: =K25 -> 1253.252978 | L46: =L25 -> 6118.823365 | N46: =N25 -> 1678.856974 | O46: =O25 -> 8196.772283 | Q46: =Q25 -> 2105.966683 | R46: =R25 -> 10282.07263 | T46: =T25 -> 2284.168571 | U46: =U25 -> 11152.11714
A47: Amortization (17% DB and 83% P) | E47: =E29 -> 198.3333333 | F47: =F29 -> 968.3333333 | H47: =H29 -> 538.3333333 | I47: =I29 -> 2628.333333 | K47: =K29 -> 825.7142857 | L47: =L29 -> 4031.428571 | N47: =N29 -> 1121.190476 | O47: =O29 -> 5474.047619 | Q47: =Q29 -> 1424.761905 | R47: =R29 -> 6956.190476 | T47: =T29 -> 0 | U47: =U29 -> 0
A48: CCA (17% DB and 83% P) | E48: =-D85*E$11 -> -666.4 | F48: =-D85*F$11 -> -3253.6 | H48: =-E85*H$11 -> -1755.488 | I48: =-E85*I$11 -> -8570.912 | K48: =-F85*K$11 -> -2580.64896 | L48: =-F85*L$11 -> -12599.63904 | N48: =-G85*N$11 -> -3366.997043 | O48: =-G85*O$11 -> -16438.86792 | Q48: =-H85*Q$11 -> -4117.63728 | R48: =-H85*R$11 -> -20103.75848 | T48: =-K85*T$11 -> 0 | U48: =-K85*U$11 -> 0
A49: Taxable income | E49: =SUM(E46:E48) -> -153.8228907 | F49: =SUM(F46:F48) -> -751.0176427 | H49: =SUM(H46:H48) -> -387.6988267 | I49: =SUM(I46:I48) -> -1892.882507 | K49: =SUM(K46:K48) -> -501.681696 | L49: =SUM(L46:L48) -> -2449.387104 | N49: =SUM(N46:N48) -> -566.9495933 | O49: =SUM(O46:O48) -> -2768.048014 | Q49: =SUM(Q46:Q48) -> -586.9086916 | R49: =SUM(R46:R48) -> -2865.495376 | T49: =SUM(T46:T48) -> 2284.168571 | U49: =SUM(U46:U48) -> 11152.11714
A51: Tax Rate (to be entered) | E51: 0.265 | F51: 0.265 | H51: 0.265 | I51: 0.265 | K51: 0.265 | L51: 0.265 | N51: 0.265 | O51: 0.265 | Q51: 0.265 | R51: 0.265 | T51: 0.265 | U51: 0.265
A52: Income Taxes Payable | E52: =E49*E51 -> -40.76306603 | F52: =F49*F51 -> -199.0196753 | H52: =H49*H51 -> -102.7401891 | I52: =I49*I51 -> -501.6138643 | K52: =K49*K51 -> -132.9456494 | L52: =L49*L51 -> -649.0875826 | N52: =N49*N51 -> -150.2416422 | O52: =O49*O51 -> -733.5327238 | Q52: =Q49*Q51 -> -155.5308033 | R52: =R49*R51 -> -759.3562747 | T52: =T49*T51 -> 605.3046714 | U52: =U49*U51 -> 2955.311043
A53: Gross Up
A54: Income Taxes Payable | E54: =E52/(1-E51) -> -55.45995378 | F54: =F52/(1-F51) -> -270.7750684 | H54: =H52/(1-H51) -> -139.7825702 | I54: =I52/(1-I51) -> -682.4678425 | K54: =K52/(1-K51) -> -180.8784346 | L54: =L52/(1-L51) -> -883.1123572 | N54: =N52/(1-N51) -> -204.4103976 | O54: =O52/(1-O51) -> -998.0037058 | Q54: =Q52/(1-Q51) -> -211.606535 | R54: =R52/(1-R51) -> -1033.137789 | T54: =T52/(1-T51) -> 823.5437707 | U54: =U52/(1-U51) -> 4020.831351
A55: Grossed Up PILs | E55: =SUM(E54:E54) -> -55.45995378 | F55: =SUM(F54:F54) -> -270.7750684 | H55: =SUM(H54:H54) -> -139.7825702 | I55: =SUM(I54:I54) -> -682.4678425 | K55: =SUM(K54:K54) -> -180.8784346 | L55: =SUM(L54:L54) -> -883.1123572 | N55: =SUM(N54:N54) -> -204.4103976 | O55: =SUM(O54:O54) -> -998.0037058 | Q55: =SUM(Q54:Q54) -> -211.606535 | R55: =SUM(R54:R54) -> -1033.137789 | T55: =SUM(T54:T54) -> 823.5437707 | U55: =SUM(U54:U54) -> 4020.831351
A58: Appendix 2-FC
A59: Calculation of Renewable Generation Connection Direct Benefits/Provincial Amount: Renewable Expansion Investments
A60: Net Fixed Assets | D60: 2015 | E60: 2016 | F60: 2017 | G60: 2018 | H60: 2019 | I60: 2020
B61: Enter applicable amortization in years: | C61: 42
A62: Opening Gross Fixed Assets | E62: =D64 -> 98000 | F62: =E64 -> 168000 | G62: =F64 -> 240000 | H62: =G64 -> 314000 | I62: =H64 -> 390000
A63: Gross Capital Additions | D63: ='App.2-FA Proposed REG Invest.'!C85 -> 98000 | E63: ='App.2-FA Proposed REG Invest.'!D85 -> 70000 | F63: ='App.2-FA Proposed REG Invest.'!E85 -> 72000 | G63: ='App.2-FA Proposed REG Invest.'!F85 -> 74000 | H63: ='App.2-FA Proposed REG Invest.'!G85 -> 76000 | I63: ='App.2-FA Proposed REG Invest.'!H85 -> 0
A64: Closing Gross Fixed Assets | D64: =SUM(D62:D63) -> 98000 | E64: 168000 | F64: 240000 | G64: 314000 | H64: 390000 | I64: 390000
A66: Opening Accumulated Amortization | E66: =D69 -> 1166.666667 | F66: =E69 -> 4333.333333 | G66: =F69 -> 9190.47619 | H66: =G69 -> 15785.71429 | I66: =H69 -> 24166.66667
A67: Current Year Amortization (before additions) | E67: =E62/$C$61 -> 2333.333333 | F67: =F62/$C$61 -> 4000 | G67: =G62/$C$61 -> 5714.285714 | H67: =H62/$C$61 -> 7476.190476 | I67: =I62/$C$61 -> 9285.714286
A68: Additions (half year) | D68: =D63/C61/2 -> 1166.666667 | E68: =E63/C61/2 -> 833.3333333 | F68: =F63/C61/2 -> 857.1428571 | G68: =G63/C61/2 -> 880.952381 | H68: =H63/C61/2 -> 904.7619048 | I68: =I63/C61/2 -> 0
A69: Closing Accumulated Amortization | D69: =SUM(D66+D68) -> 1166.666667 | E69: =SUM(E66:E68) -> 4333.333333 | F69: =SUM(F66:F68) -> 9190.47619 | G69: =SUM(G66:G68) -> 15785.71429 | H69: =SUM(H66:H68) -> 24166.66667 | I69: =SUM(I66:I68) -> 33452.38095
A71: Opening Net Fixed Assets | D71: =D62-D66 -> 0 | E71: =D72 -> 96833.33333 | F71: =E72 -> 163666.6667 | G71: =F72 -> 230809.5238 | H71: =G72 -> 298214.2857 | I71: =H72 -> 365833.3333
A72: Closing Net Fixed Assets | D72: =D64-D69 -> 96833.33333 | E72: 163666.6667 | F72: 230809.5238 | G72: 298214.2857 | H72: 365833.3333 | I72: 356547.619
A73: Average Net Fixed Assets | D73: =SUM(D71:D72)/2 -> 48416.66667 | E73: 130250 | F73: 197238.0952 | G73: 264511.9048 | H73: 332023.8095 | I73: 361190.4762
A75: UCC for PILs Calculation
D76: 2015 | E76: 2016 | F76: 2017 | G76: 2018 | H76: 2019 | I76: 2020
A78: Opening UCC | E78: =D86 -> 94080 | F78: =E86 -> 153753.6 | G78: =F86 -> 210573.312 | H78: =G86 -> 264767.447 | I78: =H86 -> 316546.0513
A79: Capital Additions (from Appendix 2-FA) | D79: =D63 -> 98000 | E79: 70000 | F79: 72000 | G79: 74000 | H79: 76000 | I79: 0
A80: UCC Before Half Year Rule | D80: =SUM(D78:D79) -> 98000 | E80: 164080 | F80: 225753.6 | G80: 284573.312 | H80: 340767.447 | I80: 316546.0513
A81: Half Year Rule (1/2 Additions - Disposals) | D81: =D79/2 -> 49000 | E81: 35000 | F81: 36000 | G81: 37000 | H81: 38000 | I81: 0
A82: Reduced UCC | D82: =D80-D81 -> 49000 | E82: 129080 | F82: 189753.6 | G82: 247573.312 | H82: 302767.447 | I82: 316546.0513
A83: CCA Rate Class (to be entered) | C83: 47 | D83: =C83 -> 47 | E83: =C83 -> 47 | F83: =C83 -> 47 | G83: =C83 -> 47 | H83: =C83 -> 47 | I83: =D83 -> 47
A84: CCA Rate (to be entered) | C84: 0.08 | D84: =C84 -> 0.08 | E84: =C84 -> 0.08 | F84: =C84 -> 0.08 | G84: =C84 -> 0.08 | H84: =C84 -> 0.08 | I84: =D84 -> 0.08
A85: CCA | D85: =D82*D$84 -> 3920 | E85: =E82*E$84 -> 10326.4 | F85: 15180.288 | G85: 19805.86496 | H85: 24221.39576 | I85: =I82*I$84 -> 25323.6841
A86: Closing UCC | D86: =D80-D85 -> 94080 | E86: 153753.6 | F86: 210573.312 | G86: 264767.447 | H86: 316546.0513 | I86: 291222.3672
